[Event "Live Chess"]
[Site "Chess.com"]
[Date "2024.06.01"]
[Round "-"]
[White "jimwad"]
[Black "MagnersCarlsberg2870"]
[Result "1-0"]
[WhiteElo "1252"]
[BlackElo "1892"]
[TimeControl "300"]
[EndTime "11:04:49 PDT"]
[Termination "jimwad won by checkmate"]

1. d4 {[%clk 0:04:59.4]} 1... Nf6 {[%clk 0:04:58.5]} 2. c4 {[%clk 0:04:58.5]}
2... e5 {[%clk 0:04:57.2]} 3. dxe5 {[%clk 0:04:57]} 3... Ng4 {[%clk 0:04:56.3]}
4. Bf4 {[%clk 0:04:49.8]} 4... Nc6 {[%clk 0:04:54.9]} 5. e3 {[%clk 0:04:36.6]}
5... f6 {[%clk 0:04:50.7]} 6. Qxg4 {[%clk 0:04:31.6]} 6... fxe5 {[%clk
0:04:49.2]} 7. Bg3 {[%clk 0:04:19.9]} 7... Bb4+ {[%clk 0:04:47.9]} 8. Nc3 {[%clk
0:04:18]} 8... O-O {[%clk 0:04:43.8]} 9. Qe2 {[%clk 0:04:03.6]} 9... d5 {[%clk
0:04:39.6]} 10. cxd5 {[%clk 0:04:02]} 10... Qxd5 {[%clk 0:04:38.5]} 11. Rd1
{[%clk 0:03:53.4]} 11... Qxa2 {[%clk 0:04:37.4]} 12. Qc2 {[%clk 0:03:38.6]}
12... Bf5 {[%clk 0:04:33.7]} 13. Bd3 {[%clk 0:03:36.5]} 13... Bxd3 {[%clk
0:04:31.7]} 14. Rxd3 {[%clk 0:03:34.3]} 14... e4 {[%clk 0:04:26.5]} 15. Rd1
{[%clk 0:03:29.5]} 15... Rad8 {[%clk 0:04:24.3]} 16. Ne2 {[%clk 0:03:26.3]}
16... Rxd1+ {[%clk 0:04:20.6]} 17. Qxd1 {[%clk 0:03:21.6]} 17... Qxb2 {[%clk
0:04:19]} 18. Qd2 {[%clk 0:02:35.3]} 18... Qa1+ {[%clk 0:04:08.9]} 19. Qd1
{[%clk 0:02:08.1]} 19... Bxc3+ {[%clk 0:04:04.9]} 20. Nxc3 {[%clk 0:02:02.9]}
20... Qxc3+ {[%clk 0:04:03.7]} 21. Ke2 {[%clk 0:02:00.8]} 21... Rd8 {[%clk
0:04:00.5]} 22. Qc1 {[%clk 0:01:52.1]} 22... Qb3 {[%clk 0:03:53.2]} 23. Bxc7
{[%clk 0:01:42.5]} 23... Rd7 {[%clk 0:03:42]} 24. Bf4 {[%clk 0:01:28.5]} 24...
Qd3+ {[%clk 0:03:40.7]} 25. Ke1 {[%clk 0:01:25.7]} 25... h6 {[%clk 0:03:33.2]}
26. f3 {[%clk 0:01:22.1]} 26... Nb4 {[%clk 0:03:20.9]} 27. Kf2 {[%clk
0:01:15.3]} 27... Rd8 {[%clk 0:02:52.9]} 28. Kg3 {[%clk 0:00:55]} 28... a5
{[%clk 0:02:44.2]} 29. Qc7 {[%clk 0:00:42.5]} 29... Nd5 {[%clk 0:02:24.2]} 30.
Qxd8+ {[%clk 0:00:37.7]} 30... Kh7 {[%clk 0:02:23]} 31. Qxa5 {[%clk 0:00:25.6]}
31... Nxf4 {[%clk 0:02:18.5]} 32. Kxf4 {[%clk 0:00:20.7]} 32... exf3 {[%clk
0:02:10]} 33. Qf5+ {[%clk 0:00:17.4]} 33... Qxf5+ {[%clk 0:02:06.7]} 34. Kxf5
{[%clk 0:00:16.6]} 34... fxg2 {[%clk 0:02:05.2]} 35. Rg1 {[%clk 0:00:15.9]}
35... g6+ {[%clk 0:02:03.4]} 36. Kf6 {[%clk 0:00:14.4]} 36... h5 {[%clk
0:02:00.7]} 37. Rxg2 {[%clk 0:00:13.8]} 37... b5 {[%clk 0:01:59.8]} 38. Rxg6
{[%clk 0:00:12.9]} 38... b4 {[%clk 0:01:58.6]} 39. Rg5 {[%clk 0:00:11]} 39... h4
{[%clk 0:01:57.1]} 40. Rb5 {[%clk 0:00:09.9]} 40... h3 {[%clk 0:01:55.8]} 41.
Rxb4 {[%clk 0:00:09.2]} 41... Kh6 {[%clk 0:01:55.1]} 42. Rh4# {[%clk 0:00:08.3]}
1-0

[Event "Live Chess"]
[Site "Chess.com"]
[Date "2024.06.01"]
[Round "-"]
[White "WelshTiger"]
[Black "sebmoran1"]
[Result "1-0"]
[WhiteElo "2536"]
[BlackElo "1380"]
[TimeControl "300"]
[EndTime "11:04:54 PDT"]
[Termination "WelshTiger won by resignation"]

1. e4 {[%clk 0:04:55.7]} 1... c5 {[%clk 0:04:58.1]} 2. Nf3 {[%clk 0:04:54.7]}
2... Nc6 {[%clk 0:04:55.9]} 3. Bb5 {[%clk 0:04:53.3]} 3... g6 {[%clk 0:04:54.4]}
4. O-O {[%clk 0:04:51.5]} 4... Bg7 {[%clk 0:04:53.3]} 5. c3 {[%clk 0:04:50.4]}
5... Nf6 {[%clk 0:04:52.3]} 6. Qa4 {[%clk 0:04:48.6]} 6... O-O {[%clk
0:04:50.4]} 7. d4 {[%clk 0:04:47.9]} 7... cxd4 {[%clk 0:04:49.2]} 8. cxd4 {[%clk
0:04:47.8]} 8... Nxe4 {[%clk 0:04:45.4]} 9. d5 {[%clk 0:04:46.9]} 9... a6 {[%clk
0:04:38.8]} 10. dxc6 {[%clk 0:04:41.9]} 10... axb5 {[%clk 0:04:36.2]} 11. Qxa8
{[%clk 0:04:40]} 11... bxc6 {[%clk 0:04:34.7]} 12. Qa3 {[%clk 0:04:34.5]} 12...
Nd6 {[%clk 0:04:32.3]} 13. Qd3 {[%clk 0:04:22.7]} 13... Qb6 {[%clk 0:04:29.3]}
14. Nc3 {[%clk 0:04:20.8]} 14... Nc4 {[%clk 0:04:27.5]} 15. b3 {[%clk
0:04:17.8]} 15... Na5 {[%clk 0:04:24.7]} 16. Be3 {[%clk 0:04:16.6]} 16... Qb8
{[%clk 0:04:21.1]} 17. Bd4 {[%clk 0:04:08.5]} 1-0

[Event "Live Chess"]
[Site "Chess.com"]
[Date "2024.06.01"]
[Round "-"]
[White "updatedopenings2024"]
[Black "McFim"]
[Result "1-0"]
[WhiteElo "1915"]
[BlackElo "1578"]
[TimeControl "300"]
[EndTime "11:04:58 PDT"]
[Termination "updatedopenings2024 won on time"]

1. Nf3 {[%clk 0:04:58.1]} 1... d5 {[%clk 0:04:58.3]} 2. g3 {[%clk 0:04:58]} 2...
Nf6 {[%clk 0:04:56.2]} 3. Bg2 {[%clk 0:04:57.9]} 3... c6 {[%clk 0:04:53.2]} 4.
O-O {[%clk 0:04:57.8]} 4... e6 {[%clk 0:04:45.2]} 5. d3 {[%clk 0:04:57.7]} 5...
Be7 {[%clk 0:04:43.2]} 6. Nbd2 {[%clk 0:04:57.6]} 6... O-O {[%clk 0:04:41.7]} 7.
Re1 {[%clk 0:04:57.5]} 7... Nbd7 {[%clk 0:04:31.6]} 8. e4 {[%clk 0:04:57.4]}
8... dxe4 {[%clk 0:04:28.7]} 9. dxe4 {[%clk 0:04:57.3]} 9... e5 {[%clk
0:04:24.8]} 10. c3 {[%clk 0:04:56.3]} 10... Bd6 {[%clk 0:04:23.1]} 11. Qc2
{[%clk 0:04:53.7]} 11... h6 {[%clk 0:04:21.1]} 12. b3 {[%clk 0:04:51.4]} 12...
Qe7 {[%clk 0:04:19.6]} 13. Nc4 {[%clk 0:04:50.5]} 13... Bc7 {[%clk 0:04:17.6]}
14. Ba3 {[%clk 0:04:49.3]} 14... c5 {[%clk 0:04:15.2]} 15. Rad1 {[%clk
0:04:47.2]} 15... b5 {[%clk 0:04:06.3]} 16. Ne3 {[%clk 0:04:45.9]} 16... a5
{[%clk 0:03:47.1]} 17. Nf5 {[%clk 0:04:33.1]} 17... Qe6 {[%clk 0:03:38.3]} 18.
Bh3 {[%clk 0:04:24.9]} 18... Kh8 {[%clk 0:03:27.8]} 19. Bf1 {[%clk 0:04:08.6]}
19... b4 {[%clk 0:03:16.9]} 20. Bb2 {[%clk 0:04:07.2]} 20... Re8 {[%clk
0:02:22.6]} 21. Bc4 {[%clk 0:04:03.5]} 21... Qc6 {[%clk 0:02:18.4]} 22. Bxf7
{[%clk 0:04:01.9]} 22... Bb7 {[%clk 0:02:06.1]} 23. Bxe8 {[%clk 0:03:57]} 23...
Rxe8 {[%clk 0:02:04.2]} 24. Nd2 {[%clk 0:03:48.5]} 24... Nb6 {[%clk 0:01:46.6]}
25. c4 {[%clk 0:03:44.3]} 25... Nc8 {[%clk 0:01:38.9]} 26. Ne3 {[%clk
0:03:39.1]} 26... Ne7 {[%clk 0:01:33.4]} 27. Nd5 {[%clk 0:03:38]} 27... Bb8
{[%clk 0:00:52.4]} 28. Nf3 {[%clk 0:03:29.4]} 28... Ng6 {[%clk 0:00:49]} 29. h4
{[%clk 0:03:06.4]} 29... h5 {[%clk 0:00:41]} 30. Ng5 {[%clk 0:03:02.2]} 30...
Bc8 {[%clk 0:00:36.5]} 31. f3 {[%clk 0:02:34.5]} 31... Kg8 {[%clk 0:00:19.7]}
32. Kg2 {[%clk 0:02:31.9]} 32... Kh8 {[%clk 0:00:12.2]} 33. Bc1 {[%clk
0:02:29.8]} 33... Kg8 {[%clk 0:00:10.3]} 34. Be3 {[%clk 0:02:28.6]} 34... Bd6
{[%clk 0:00:07.5]} 35. Qf2 {[%clk 0:02:26.4]} 35... Nd7 {[%clk 0:00:04.4]} 36.
Qd2 {[%clk 0:02:20.7]} 36... Bf8 {[%clk 0:00:02.2]} 37. Bg1 {[%clk 0:02:12.4]}
1-0

[Event "Live Chess"]
[Site "Chess.com"]
[Date "2024.06.01"]
[Round "-"]
[White "bill77678"]
[Black "koekoekoe"]
[Result "0-1"]
[WhiteElo "1834"]
[BlackElo "2109"]
[TimeControl "300"]
[EndTime "11:04:59 PDT"]
[Termination "koekoekoe won on time"]

1. e4 {[%clk 0:04:58.3]} 1... d5 {[%clk 0:04:59.7]} 2. exd5 {[%clk 0:04:57]}
2... Qxd5 {[%clk 0:04:59.6]} 3. Nc3 {[%clk 0:04:55.9]} 3... Qa5 {[%clk
0:04:59.3]} 4. g3 {[%clk 0:04:54.6]} 4... Nf6 {[%clk 0:04:58.9]} 5. Bg2 {[%clk
0:04:53.8]} 5... Bf5 {[%clk 0:04:57]} 6. Nf3 {[%clk 0:04:50.3]} 6... e6 {[%clk
0:04:56]} 7. O-O {[%clk 0:04:46.3]} 7... c6 {[%clk 0:04:52.2]} 8. a3 {[%clk
0:04:43.8]} 8... Bd6 {[%clk 0:04:48.5]} 9. b4 {[%clk 0:04:40.8]} 9... Qc7 {[%clk
0:04:43.5]} 10. b5 {[%clk 0:04:29.7]} 10... O-O {[%clk 0:04:39.3]} 11. Rb1
{[%clk 0:04:26.1]} 11... a6 {[%clk 0:04:28]} 12. Nd4 {[%clk 0:04:08.4]} 12...
Bg6 {[%clk 0:04:19.6]} 13. a4 {[%clk 0:04:06.7]} 13... Nd5 {[%clk 0:04:06]} 14.
Ne4 {[%clk 0:03:55]} 14... Be5 {[%clk 0:03:51.3]} 15. Nb3 {[%clk 0:03:27.7]}
15... Nf6 {[%clk 0:03:24.9]} 16. Nxf6+ {[%clk 0:03:15.5]} 16... Bxf6 {[%clk
0:03:24.8]} 17. d3 {[%clk 0:03:05.7]} 17... cxb5 {[%clk 0:03:11.3]} 18. axb5
{[%clk 0:03:03.7]} 18... axb5 {[%clk 0:03:07.9]} 19. Bf4 {[%clk 0:02:50.5]}
19... e5 {[%clk 0:02:58.9]} 20. Be3 {[%clk 0:02:46]} 20... Nd7 {[%clk
0:02:45.7]} 21. Qe2 {[%clk 0:02:28.4]} 21... Ra2 {[%clk 0:02:39.2]} 22. Rfc1
{[%clk 0:02:26.8]} 22... Rc8 {[%clk 0:02:35.2]} 23. h4 {[%clk 0:02:04.1]} 23...
h6 {[%clk 0:02:20.1]} 24. h5 {[%clk 0:01:59.1]} 24... Bh7 {[%clk 0:02:13.4]} 25.
Ra1 {[%clk 0:01:28.5]} 25... Rxc2 {[%clk 0:02:06.1]} 26. Rxc2 {[%clk 0:01:27.3]}
26... Qxc2 {[%clk 0:02:04.5]} 27. Qxc2 {[%clk 0:01:25.9]} 27... Rxc2 {[%clk
0:02:04.4]} 28. Ra8+ {[%clk 0:01:13.5]} 28... Nf8 {[%clk 0:01:48.7]} 29. Bc5
{[%clk 0:01:10.8]} 29... Bxd3 {[%clk 0:01:07.2]} 30. Rxf8+ {[%clk 0:01:01.2]}
30... Kh7 {[%clk 0:01:06.7]} 31. Rxf7 {[%clk 0:00:53.6]} 31... Kg8 {[%clk
0:00:46.6]} 32. Bd5 {[%clk 0:00:41.6]} 32... Kh7 {[%clk 0:00:27.9]} 33. Rxb7
{[%clk 0:00:14.8]} 33... Bf5 {[%clk 0:00:16.2]} 34. Be3 {[%clk 0:00:11.8]} 34...
Bg5 {[%clk 0:00:09.5]} 35. Bxg5 {[%clk 0:00:10]} 35... hxg5 {[%clk 0:00:09.4]}
36. Kg2 {[%clk 0:00:07.6]} 36... Rc3 {[%clk 0:00:07.8]} 37. Nd2 {[%clk
0:00:04.5]} 37... Rd3 {[%clk 0:00:07.3]} 38. Ne4 {[%clk 0:00:00.1]} 38... Rxd5
{[%clk 0:00:06.4]} 0-1

[Event "Live Chess"]
[Site "Chess.com"]
[Date "2024.06.01"]
[Round "-"]
[White "KeithArkell"]
[Black "Crowded_House"]
[Result "1-0"]
[WhiteElo "2518"]
[BlackElo "1766"]
[TimeControl "300"]
[EndTime "11:05:09 PDT"]
[Termination "KeithArkell won by resignation"]

1. d4 {[%clk 0:04:57.5]} 1... e6 {[%clk 0:04:56]} 2. Nf3 {[%clk 0:04:56.7]} 2...
d5 {[%clk 0:04:54.9]} 3. c4 {[%clk 0:04:55.8]} 3... c6 {[%clk 0:04:53.1]} 4.
cxd5 {[%clk 0:04:55.1]} 4... exd5 {[%clk 0:04:49.1]} 5. Nc3 {[%clk 0:04:54.2]}
5... Nf6 {[%clk 0:04:46.9]} 6. Qc2 {[%clk 0:04:53]} 6... Bd6 {[%clk 0:04:45.3]}
7. Bg5 {[%clk 0:04:51.5]} 7... Nbd7 {[%clk 0:04:42.3]} 8. e3 {[%clk 0:04:50.5]}
8... O-O {[%clk 0:04:40.8]} 9. Bd3 {[%clk 0:04:49.8]} 9... Re8 {[%clk
0:04:36.8]} 10. Bxh7+ {[%clk 0:04:48.4]} 10... Kh8 {[%clk 0:04:33.7]} 11. Bf5
{[%clk 0:04:47.7]} 11... g6 {[%clk 0:04:30.8]} 12. Bxg6 {[%clk 0:04:41.5]} 12...
fxg6 {[%clk 0:04:29.5]} 13. Qxg6 {[%clk 0:04:40.5]} 13... Be7 {[%clk 0:04:18.8]}
14. h4 {[%clk 0:04:31.8]} 14... Rg8 {[%clk 0:04:16.4]} 15. Qh6+ {[%clk
0:04:19.1]} 15... Nh7 {[%clk 0:04:13.8]} 16. O-O-O {[%clk 0:04:13.4]} 16... Qf8
{[%clk 0:04:00.3]} 17. Qe6 {[%clk 0:04:01.9]} 17... Ndf6 {[%clk 0:03:51.4]} 18.
Qe5 {[%clk 0:04:00.4]} 18... Bd6 {[%clk 0:03:43.1]} 19. Bxf6+ {[%clk 0:03:56.8]}
19... Nxf6 {[%clk 0:03:31.4]} 20. Qg5 {[%clk 0:03:54.6]} 20... Rxg5 {[%clk
0:03:27.3]} 21. hxg5+ {[%clk 0:03:53.8]} 21... Kg7 {[%clk 0:03:23.7]} 22. gxf6+
{[%clk 0:03:52.8]} 22... Qxf6 {[%clk 0:03:21.6]} 23. Rh5 {[%clk 0:03:45.7]}
23... Bg4 {[%clk 0:03:06.2]} 24. Rg5+ {[%clk 0:03:43.5]} 24... Kf7 {[%clk
0:02:52.5]} 25. Rxg4 {[%clk 0:03:41.5]} 25... Rg8 {[%clk 0:02:41.1]} 26. Rxg8
{[%clk 0:03:37.9]} 26... Kxg8 {[%clk 0:02:39.5]} 27. Rh1 {[%clk 0:03:33.6]}
27... Qg6 {[%clk 0:02:26.7]} 28. Kd2 {[%clk 0:03:29.9]} 28... Qxg2 {[%clk
0:02:24.2]} 29. Rg1 {[%clk 0:03:28.6]} 29... Qxg1 {[%clk 0:02:21.2]} 30. Nxg1
{[%clk 0:03:27.9]} 30... Kf7 {[%clk 0:02:19.2]} 31. Kd3 {[%clk 0:03:26]} 31...
Bb4 {[%clk 0:02:16.8]} 32. Nge2 {[%clk 0:03:25]} 32... Bd6 {[%clk 0:02:13.6]}
33. f3 {[%clk 0:03:24.4]} 33... b6 {[%clk 0:02:12.2]} 34. e4 {[%clk 0:03:23.8]}
34... dxe4+ {[%clk 0:02:10.8]} 35. fxe4 {[%clk 0:03:23.4]} 35... Bh2 {[%clk
0:02:07.6]} 36. e5 {[%clk 0:03:22.5]} 36... Ke6 {[%clk 0:02:06.5]} 37. Ke4
{[%clk 0:03:21.9]} 37... b5 {[%clk 0:02:03.2]} 38. Nf4+ {[%clk 0:03:20.3]} 38...
Bxf4 {[%clk 0:02:01.8]} 39. Kxf4 {[%clk 0:03:19.2]} 39... a5 {[%clk 0:01:58.8]}
40. Ke4 {[%clk 0:03:17.7]} 40... b4 {[%clk 0:01:57]} 41. Na4 {[%clk 0:03:16.5]}
1-0

[Event "Live Chess"]
[Site "Chess.com"]
[Date "2024.06.01"]
[Round "-"]
[White "Sokolik_UA"]
[Black "yarek"]
[Result "0-1"]
[WhiteElo "804"]
[BlackElo "1718"]
[TimeControl "300"]
[EndTime "11:05:49 PDT"]
[Termination "yarek won by checkmate"]

1. e4 {[%clk 0:04:57.8]} 1... c5 {[%clk 0:04:57]} 2. d3 {[%clk 0:04:57.2]} 2...
Nc6 {[%clk 0:04:56.2]} 3. f4 {[%clk 0:04:56.3]} 3... d5 {[%clk 0:04:54.1]} 4.
Nf3 {[%clk 0:04:43.7]} 4... d4 {[%clk 0:04:50.7]} 5. Ne5 {[%clk 0:04:41.3]} 5...
Nxe5 {[%clk 0:04:48.5]} 6. fxe5 {[%clk 0:04:40.1]} 6... e6 {[%clk 0:04:46.7]} 7.
Be2 {[%clk 0:04:36.2]} 7... Be7 {[%clk 0:04:44.3]} 8. O-O {[%clk 0:04:35.6]}
8... Bd7 {[%clk 0:04:29.9]} 9. Na3 {[%clk 0:04:32.2]} 9... a6 {[%clk 0:04:27.8]}
10. Nc4 {[%clk 0:04:31.1]} 10... Qc7 {[%clk 0:04:18.7]} 11. a4 {[%clk
0:04:29.1]} 11... b6 {[%clk 0:03:55.7]} 12. Bf4 {[%clk 0:04:24.5]} 12... h6
{[%clk 0:03:52.1]} 13. Nd6+ {[%clk 0:04:10.6]} 13... Bxd6 {[%clk 0:03:50.1]} 14.
exd6 {[%clk 0:04:09.8]} 14... Qb7 {[%clk 0:03:33.9]} 15. Bf3 {[%clk 0:04:07.5]}
15... Bc6 {[%clk 0:03:31.7]} 16. b3 {[%clk 0:04:01.7]} 16... Nf6 {[%clk
0:03:29]} 17. Be5 {[%clk 0:03:58.2]} 17... Kd7 {[%clk 0:03:16.6]} 18. c3 {[%clk
0:03:44.5]} 18... dxc3 {[%clk 0:02:56.1]} 19. Qc2 {[%clk 0:03:37]} 19... Ne8
{[%clk 0:02:45.8]} 20. Qxc3 {[%clk 0:03:30.4]} 20... f6 {[%clk 0:02:44.9]} 21.
Bg3 {[%clk 0:03:20.9]} 21... Nxd6 {[%clk 0:02:39.2]} 22. Bxd6 {[%clk 0:03:18.6]}
22... Kxd6 {[%clk 0:02:37.9]} 23. d4 {[%clk 0:03:15.2]} 23... Bxe4 {[%clk
0:02:15.2]} 24. dxc5+ {[%clk 0:03:06.4]} 24... bxc5 {[%clk 0:02:13.9]} 25. Qd2+
{[%clk 0:02:57.3]} 25... Ke7 {[%clk 0:02:07.5]} 26. Rad1 {[%clk 0:02:52.6]}
26... Rhd8 {[%clk 0:02:03.9]} 27. Qe2 {[%clk 0:02:48.9]} 27... Bxf3 {[%clk
0:01:59.7]} 28. Qxf3 {[%clk 0:02:47.1]} 28... Qxf3 {[%clk 0:01:56.7]} 29. gxf3
{[%clk 0:02:46.1]} 29... Rd4 {[%clk 0:01:52.2]} 30. Rxd4 {[%clk 0:02:43.9]}
30... cxd4 {[%clk 0:01:52.1]} 31. Rd1 {[%clk 0:02:41.7]} 31... e5 {[%clk
0:01:50.5]} 32. b4 {[%clk 0:02:40.2]} 32... Rb8 {[%clk 0:01:48.9]} 33. b5 {[%clk
0:02:38.7]} 33... axb5 {[%clk 0:01:47.6]} 34. axb5 {[%clk 0:02:37.8]} 34... Rxb5
{[%clk 0:01:47.2]} 35. Re1 {[%clk 0:02:35.6]} 35... Rb2 {[%clk 0:01:44.9]} 36.
f4 {[%clk 0:02:34.2]} 36... Kd6 {[%clk 0:01:43.7]} 37. fxe5+ {[%clk 0:02:33.4]}
37... fxe5 {[%clk 0:01:43.4]} 38. Rf1 {[%clk 0:02:30.1]} 38... d3 {[%clk
0:01:41.5]} 39. Rf7 {[%clk 0:02:26.1]} 39... d2 {[%clk 0:01:39.1]} 40. Rf2
{[%clk 0:02:24.8]} 40... d1=Q+ {[%clk 0:01:37.2]} 41. Kg2 {[%clk 0:02:23.4]}
41... Qg4+ {[%clk 0:01:35.4]} 42. Kf1 {[%clk 0:02:22]} 42... Rxf2+ {[%clk
0:01:30.7]} 43. Kxf2 {[%clk 0:02:20.5]} 43... e4 {[%clk 0:01:30]} 44. h3 {[%clk
0:02:19.5]} 44... Qf3+ {[%clk 0:01:29.2]} 45. Ke1 {[%clk 0:02:18.3]} 45... e3
{[%clk 0:01:27.2]} 46. h4 {[%clk 0:02:16.5]} 46... Qf2+ {[%clk 0:01:26.7]} 47.
Kd1 {[%clk 0:02:14.7]} 47... Qd2# {[%clk 0:01:26.2]} 0-1

[Event "Live Chess"]
[Site "Chess.com"]
[Date "2024.06.01"]
[Round "-"]
[White "blunderabit"]
[Black "Andorranarmy"]
[Result "0-1"]
[WhiteElo "1795"]
[BlackElo "1965"]
[TimeControl "300"]
[EndTime "11:05:55 PDT"]
[Termination "Andorranarmy won on time"]

1. e4 {[%clk 0:04:53.9]} 1... d5 {[%clk 0:04:59.2]} 2. exd5 {[%clk 0:04:51.2]}
2... Qxd5 {[%clk 0:04:59.1]} 3. Nc3 {[%clk 0:04:49.3]} 3... Qa5 {[%clk
0:04:57.8]} 4. d3 {[%clk 0:04:45.6]} 4... Nf6 {[%clk 0:04:57.2]} 5. Bd2 {[%clk
0:04:44.3]} 5... c6 {[%clk 0:04:56.6]} 6. Qe2 {[%clk 0:04:40.1]} 6... Bf5 {[%clk
0:04:49.7]} 7. O-O-O {[%clk 0:04:26.4]} 7... Nbd7 {[%clk 0:04:48.6]} 8. h3
{[%clk 0:04:22.3]} 8... O-O-O {[%clk 0:04:47.3]} 9. g4 {[%clk 0:04:20]} 9... Bg6
{[%clk 0:04:45]} 10. f4 {[%clk 0:04:17.4]} 10... h6 {[%clk 0:04:40.4]} 11. f5
{[%clk 0:04:14.6]} 11... Bh7 {[%clk 0:04:39.1]} 12. Bg2 {[%clk 0:04:07.8]} 12...
g6 {[%clk 0:04:37.8]} 13. Kb1 {[%clk 0:04:03.2]} 13... gxf5 {[%clk 0:04:36.6]}
14. gxf5 {[%clk 0:03:10.5]} 14... Bxf5 {[%clk 0:04:36.5]} 15. Nf3 {[%clk
0:03:07.2]} 15... e6 {[%clk 0:04:35.4]} 16. Nd4 {[%clk 0:03:04.3]} 16... Bg6
{[%clk 0:04:12.6]} 17. Rhf1 {[%clk 0:02:00.7]} 17... Qb6 {[%clk 0:04:04.7]} 18.
Nxe6 {[%clk 0:01:49.8]} 18... fxe6 {[%clk 0:03:51.3]} 19. Qxe6 {[%clk
0:01:47.8]} 19... Bg7 {[%clk 0:03:40.8]} 20. Qe7 {[%clk 0:01:30.2]} 20... Nh5
{[%clk 0:03:01]} 21. Qd6 {[%clk 0:01:21.5]} 21... Ne5 {[%clk 0:02:40.1]} 22.
Qe6+ {[%clk 0:01:16.3]} 22... Kb8 {[%clk 0:02:35.4]} 23. Be3 {[%clk 0:00:38.6]}
23... Qa5 {[%clk 0:02:11.6]} 24. d4 {[%clk 0:00:16.8]} 24... Rhe8 {[%clk
0:02:05]} 25. Qb3 {[%clk 0:00:11.2]} 25... Bf7 {[%clk 0:00:54.6]} 26. d5 {[%clk
0:00:02.5]} 26... Bxd5 {[%clk 0:00:45.4]} 0-1

[Event "Live Chess"]
[Site "Chess.com"]
[Date "2024.06.01"]
[Round "-"]
[White "willc-h99"]
[Black "NottheBishopSacrifice"]
[Result "0-1"]
[WhiteElo "2631"]
[BlackElo "2263"]
[TimeControl "300"]
[EndTime "11:06:05 PDT"]
[Termination "NottheBishopSacrifice won by resignation"]

1. d4 {[%clk 0:04:57.8]} 1... d5 {[%clk 0:04:58.5]} 2. Nf3 {[%clk 0:04:56.4]}
2... Nf6 {[%clk 0:04:56.8]} 3. e3 {[%clk 0:04:54.6]} 3... c5 {[%clk 0:04:55.3]}
4. c3 {[%clk 0:04:50.8]} 4... cxd4 {[%clk 0:04:52.3]} 5. exd4 {[%clk 0:04:48.9]}
5... Nc6 {[%clk 0:04:51.9]} 6. Bd3 {[%clk 0:04:47.4]} 6... Bg4 {[%clk
0:04:49.9]} 7. O-O {[%clk 0:04:43.3]} 7... e6 {[%clk 0:04:47.3]} 8. Re1 {[%clk
0:04:37.5]} 8... Bd6 {[%clk 0:04:45.3]} 9. h3 {[%clk 0:04:36.2]} 9... Bh5 {[%clk
0:04:43.2]} 10. g4 {[%clk 0:04:35.4]} 10... Bg6 {[%clk 0:04:42]} 11. Ne5 {[%clk
0:04:34.9]} 11... Bxe5 {[%clk 0:04:38.6]} 12. dxe5 {[%clk 0:04:33.4]} 12... Nd7
{[%clk 0:04:38.1]} 13. f4 {[%clk 0:04:29.2]} 13... Bxd3 {[%clk 0:04:31.8]} 14.
Qxd3 {[%clk 0:04:27.4]} 14... h5 {[%clk 0:04:30.7]} 15. Qg3 {[%clk 0:03:55.3]}
15... hxg4 {[%clk 0:04:29.4]} 16. hxg4 {[%clk 0:03:53.7]} 16... Qb6+ {[%clk
0:04:03.7]} 17. Kg2 {[%clk 0:03:49]} 17... O-O-O {[%clk 0:04:00.7]} 18. Be3
{[%clk 0:03:37.1]} 18... Qxb2+ {[%clk 0:03:57.7]} 19. Nd2 {[%clk 0:03:36.4]}
19... Qxc3 {[%clk 0:03:45.1]} 20. Rec1 {[%clk 0:03:31.7]} 20... Qd3 {[%clk
0:03:43.1]} 21. Rab1 {[%clk 0:03:18.9]} 21... Qe2+ {[%clk 0:03:37.2]} 22. Kg1
{[%clk 0:02:40.1]} 22... Nb6 {[%clk 0:03:34.9]} 23. Re1 {[%clk 0:02:24.1]} 23...
Qd3 {[%clk 0:03:23.9]} 24. Nb3 {[%clk 0:02:17.4]} 24... d4 {[%clk 0:03:11.5]}
25. Nc5 {[%clk 0:02:16.3]} 25... Qc4 {[%clk 0:03:03.1]} 26. Ne4 {[%clk
0:01:38.1]} 26... Qd5 {[%clk 0:02:55.7]} 27. Bf2 {[%clk 0:01:26.3]} 27... Kb8
{[%clk 0:02:47.1]} 28. a4 {[%clk 0:01:03.8]} 28... Nxa4 {[%clk 0:02:40.8]} 29.
Qg2 {[%clk 0:00:43]} 29... Nc3 {[%clk 0:02:26.4]} 30. Nxc3 {[%clk 0:00:42.3]}
30... Qxg2+ {[%clk 0:02:24.4]} 31. Kxg2 {[%clk 0:00:42.2]} 31... dxc3 {[%clk
0:02:23.4]} 32. Rec1 {[%clk 0:00:42.1]} 32... Rd3 {[%clk 0:02:19.5]} 33. Rb3
{[%clk 0:00:40.4]} 33... Rhd8 {[%clk 0:02:09.7]} 34. Rbxc3 {[%clk 0:00:39.1]}
34... Rxc3 {[%clk 0:02:09]} 35. Rxc3 {[%clk 0:00:39]} 35... a5 {[%clk
0:02:07.9]} 36. Rh3 {[%clk 0:00:31.9]} 36... a4 {[%clk 0:02:01.2]} 37. Bc5
{[%clk 0:00:27.5]} 37... b5 {[%clk 0:01:54.6]} 38. Bd6+ {[%clk 0:00:24]} 38...
Kb7 {[%clk 0:01:52.6]} 39. Rh7 {[%clk 0:00:23.4]} 39... Rd7 {[%clk 0:01:49.4]}
40. Rxg7 {[%clk 0:00:21.2]} 40... b4 {[%clk 0:01:48.9]} 41. g5 {[%clk
0:00:18.1]} 41... Kc8 {[%clk 0:01:42.1]} 42. Rg8+ {[%clk 0:00:16]} 42... Rd8
{[%clk 0:01:41]} 43. Rg7 {[%clk 0:00:14.9]} 43... Rd7 {[%clk 0:01:28.6]} 44. g6
{[%clk 0:00:14.3]} 44... fxg6 {[%clk 0:01:26.1]} 45. Rxg6 {[%clk 0:00:14.2]}
45... a3 {[%clk 0:01:24.5]} 46. Kf3 {[%clk 0:00:09.9]} 46... a2 {[%clk
0:01:21.6]} 47. Rg1 {[%clk 0:00:09.6]} 47... Nd4+ {[%clk 0:01:20.9]} 48. Ke4
{[%clk 0:00:08.5]} 48... Nc2 {[%clk 0:01:20.1]} 49. Rc1 {[%clk 0:00:07.7]} 49...
a1=Q {[%clk 0:01:18.4]} 50. Rxc2+ {[%clk 0:00:06.5]} 50... Kb7 {[%clk
0:01:18.1]} 51. Re2 {[%clk 0:00:05.3]} 51... b3 {[%clk 0:01:14.7]} 0-1